lending/lending_fUSD_20250418
["ID","MTS","AMOUNT","RATE_DAILY","PERIOD"]
[358352598,1744977478272,-899.61717251,0.000788,120]
[358352599,1744977478298,-3026.91221777,0.00078986,120]
[358352600,1744977478322,-1000.0,0.00079,120]
[358352601,1744977478348,-1000.0,0.00079,120]
[358352602,1744977478373,-1000.0,0.00079,120]
[358352603,1744977478397,-1000.0,0.00079,120]
[358352604,1744977478423,-1000.0,0.00079,120]
[358352605,1744977478447,-1000.0,0.00079,120]
[358352606,1744977478472,-683.3741607,0.00079,120]
[358352607,1744977478497,-4000.0,0.00079,50]
[358352608,1744977478523,-10688.0,0.000794,120]
[358352609,1744977478549,-10688.0,0.000794,120]
[358352610,1744977478575,-10688.0,0.000794,120]
[358352611,1744977478600,-10688.0,0.000794,120]
[358352612,1744977478626,-10688.0,0.000794,120]
[358352613,1744977478651,-10688.0,0.000794,120]
[358352614,1744977478676,-10688.0,0.000794,120]
[358352615,1744977478703,-10688.0,0.000794,120]
[358352616,1744977478729,-10688.0,0.000794,120]
[358352617,1744977478754,-10688.0,0.000794,120]
[358352618,1744977478781,-10688.0,0.000794,120]
[358352619,1744977478806,-8231.15,0.000794,120]
[358352620,1744977478832,-1735.49,0.00079452,120]
[358352621,1744977478861,-578.75126914,0.00079452,120]
[358352622,1744977478887,-500.0,0.00079452,120]
[358352623,1744977478912,-500.0,0.00079452,120]
[358352624,1744977478938,-500.0,0.00079452,120]
[358352625,1744977478964,-500.0,0.00079452,120]
[358352626,1744977478990,-541.74343128,0.00079452,120]
[358352627,1744977479016,-500.0,0.00079452,120]
[358352628,1744977479043,-194.86866157,0.00079452,120]
[358352629,1744977479067,-500.0,0.00079452,120]
[358352630,1744977479093,-500.0,0.00079452,120]
[358352631,1744977479118,-748.4,0.00079452,120]
[358352632,1744977479143,-655.13,0.00079452,120]
[358352633,1744977479170,-500.0,0.00079452,120]
[358352634,1744977479195,-310.46647105,0.00079452,120]
[358352635,1744977479220,-500.0,0.00079452,120]
[358352636,1744977479246,-257.03825069,0.00079452,120]
[358352637,1744977479271,-500.0,0.00079452,120]
[358352638,1744977479297,-500.0,0.00079452,120]
[358352639,1744977479323,-422.61256645,0.00079452,120]
[358352640,1744977479348,-500.0,0.00079452,120]
[358352641,1744977479373,-500.0,0.00079452,120]
[358352642,1744977479398,-503.15,0.00079452,120]
[358352643,1744977479423,-521.59636648,0.00079452,120]
[358352644,1744977479449,-500.0,0.00079452,120]
[358352645,1744977479474,-500.0,0.00079452,120]
[358352646,1744977479500,-500.0,0.00079452,120]
[358352647,1744977479526,-500.0,0.00079452,120]
[358352648,1744977479551,-500.0,0.00079452,120]
[358352649,1744977479577,-500.0,0.00079452,120]
[358352650,1744977479601,-1000.0,0.00079452,120]
[358352651,1744977479627,-8227.57,0.00079452,120]
[358352652,1744977479800,-500.0,0.00079452,120]
[358352653,1744977479829,-955.26,0.00079452,120]
[358352654,1744977479858,-500.0,0.00079452,120]
[358352655,1744977479890,-949.38,0.00079452,120]
[358352656,1744977479918,-500.0,0.00079452,120]
[358352657,1744977479945,-831.5,0.00079452,120]
[358352658,1744977479972,-500.0,0.00079452,120]
[358352659,1744977479998,-500.0,0.00079452,120]
[358352660,1744977480027,-919.17,0.00079452,120]
[358352661,1744977480054,-290.3729207,0.00079452,120]
[358352662,1744977480080,-1875.69,0.00079452,120]
[358352663,1744977480107,-500.0,0.00079452,120]
[358352664,1744977480135,-649.39556684,0.00079452,120]
[358352665,1744977480161,-500.0,0.00079452,120]
[358352666,1744977480187,-500.0,0.00079452,120]
[358352667,1744977480217,-1456.18,0.00079452,120]
[358352668,1744977480244,-641.16,0.00079452,120]
[358352669,1744977480279,-585.59,0.00079452,120]
[358352670,1744977480306,-500.0,0.00079452,120]
[358352671,1744977480332,-549.34,0.00079452,120]
[358352672,1744977480358,-599.53202053,0.00079452,120]
[358352673,1744977480385,-500.0,0.00079452,120]
[358352674,1744977480410,-350.0,0.00079452,120]
[358352675,1744977480436,-500.0,0.00079452,120]
[358352676,1744977480463,-500.0,0.00079452,120]
[358352677,1744977480489,-8730.34,0.00079452,120]
[358352678,1744977480515,-550.10000762,0.00079452,120]
[358352679,1744977480540,-535.3198721,0.00079452,120]
[358352680,1744977480566,-500.0,0.00079452,120]
[358352681,1744977480594,-500.0,0.00079452,120]
[358352682,1744977480619,-896.03,0.00079452,120]
[358352683,1744977480646,-898.64,0.00079452,120]
[358352684,1744977480672,-500.0,0.00079452,120]
[358352685,1744977480698,-500.0,0.00079452,120]
[358352686,1744977480724,-500.0,0.00079452,120]
[358352687,1744977480750,-500.0,0.00079452,120]
[358352688,1744977480776,-500.0,0.00079452,120]
[358352689,1744977480802,-500.0,0.00079452,120]
[358352690,1744977480830,-500.0,0.00079452,120]
[358352691,1744977480858,-500.0,0.00079452,120]
[358352692,1744977480886,-536.0,0.00079634,120]
[358352693,1744977480913,-200.0,0.000797,120]
[358352694,1744977480942,-200.0,0.00079794,120]
[358352695,1744977480970,-3000.0,0.0007986,45]
[358352696,1744977481000,-133360.2360442,0.000799,120]
[358352697,1744977481028,-222.87,0.000799,120]
[358352698,1744977481056,-177.93,0.000799,120]
[358352699,1744977481085,-352.15678337,0.000799,120]
[358352700,1744977481113,-200.0,0.000799,29]
[358352701,1744977481156,-1000.0,0.0007997,120]
[358352702,1744977481185,-218.99999899,0.0007998,120]
[358352703,1744977481212,-1000.0,0.00079997,120]
[358352704,1744977481240,-300.0,0.00079999,60]
[358352705,1744977481267,-607.66071158,0.00079999,90]
[358352706,1744977481294,-477.47876277,0.00079999,120]
[358352707,1744977481319,-383.02816077,0.00079999,120]
[358352708,1744977481346,-249.20465582,0.00079999,31]
[358352709,1744977481371,-351.91319043,0.00079999,120]
[358352710,1744977481398,-383.49758021,0.00079999,120]
[358352711,1744977481424,-485.81646276,0.00079999,120]
[358352712,1744977481454,-378.31668764,0.00079999,120]
[358352713,1744977481484,-500.0,0.00079999,120]
[358352714,1744977481515,-500.0,0.00079999,120]
[358352715,1744977481545,-500.0,0.00079999,120]
[358352716,1744977481576,-500.0,0.00079999,120]
[358352717,1744977481606,-500.0,0.00079999,120]
[358352718,1744977481638,-500.0,0.00079999,120]
[358352719,1744977481668,-500.0,0.00079999,120]
[358352720,1744977481698,-500.0,0.00079999,120]
[358352721,1744977481729,-500.0,0.00079999,120]
[358352722,1744977481767,-500.0,0.00079999,120]
[358352723,1744977481798,-500.0,0.00079999,120]
[358352724,1744977481829,-500.0,0.00079999,120]
[358352725,1744977481864,-500.0,0.00079999,120]
[358352726,1744977481894,-500.0,0.00079999,120]
[358352727,1744977481924,-500.0,0.00079999,120]
[358352728,1744977481957,-500.0,0.00079999,120]
[358352729,1744977481987,-500.0,0.00079999,120]
[358352730,1744977482017,-500.0,0.00079999,120]
[358352731,1744977482047,-500.0,0.00079999,120]
[358352732,1744977482078,-500.0,0.00079999,120]
[358352733,1744977482109,-500.0,0.00079999,120]
[358352734,1744977482138,-306.385616,0.00079999,120]
[358352735,1744977482169,-500.0,0.00079999,120]
[358352736,1744977482198,-550.0,0.00079999,120]
[358352737,1744977482226,-1000.0,0.0008,35]
[358352738,1744977482252,-1000.0,0.0008,35]
[358352739,1744977482278,-1000.0,0.0008,35]
[358352740,1744977482305,-1000.0,0.0008,25]
[358352741,1744977482333,-1000.0,0.0008,30]
[358352742,1744977482359,-500.0,0.0008,120]
[358352743,1744977482386,-547.0,0.0008,39]
[358352744,1744977482413,-1000.0,0.0008,39]
[358352745,1744977482444,-1000.0,0.0008,39]
[358352746,1744977482470,-1000.0,0.0008,39]
[358352747,1744977482676,-1000.0,0.0008,25]
[358352748,1744977482705,-1000.0,0.0008,27]
[358352749,1744977482732,-500.0,0.0008,120]
[358352750,1744977482766,-1000.0,0.0008,27]
[358352751,1744977482793,-1000.0,0.0008,25]
[358352752,1744977482818,-1000.0,0.0008,25]
[358352753,1744977482847,-37087.78,0.0008,120]
[358352754,1744977482877,-50000.0,0.0008,30]
[358352755,1744977482909,-582201.45421177,0.0008,120]
[358352756,1744977822908,-179.714,0.00023,2]
[358352757,1744977822938,-450.0,0.00025,2]
[358352758,1744977842870,1078.73730209,0.00044932,2]
[358352759,1744977847929,1078.73730209,0.00049925,2]
[358352760,1744977862142,-500.0,0.00060816,120]
[358352761,1744977868020,-162.0,0.00065463,2]
[358352762,1744977868047,-2049.0,0.00065463,120]
[358352763,1744977868071,-1422.505,0.00065463,120]
[358352764,1744977868099,-2137.0,0.00065463,2]
[358352765,1744977868128,-569.971,0.00065463,120]
[358352766,1744977868154,-2797.35058598,0.00066472,2]
[358352767,1744977868180,-20000.0,0.0006666,120]
[358352768,1744977868208,-230.97451709,0.000669,33]
[358352769,1744977868233,-662.86,0.00067048,2]
[358352770,1744977868274,-230.97451699,0.00067486,33]
[358352771,1744977868299,-500.0,0.00067855,120]
[358352772,1744977868326,-230.97451699,0.00068072,34]
[358352773,1744977868351,-2000.0,0.00068169,120]
[358352774,1744977868375,-17006.38986295,0.00068271,2]
[358352775,1744977957571,198.62734995,0.00049315,120]
[358352776,1744977961323,250.0,0.00052877,2]
[358352777,1744977961509,250.0,0.00058,2]
[358352778,1744977961593,250.0,0.00064208,2]
[358352779,1744977975399,175.25,0.00054821,2]
[358352780,1744977989321,153.0,0.00054093,30]
[358352781,1744977989481,153.0,0.00054093,30]
[358352782,1744977989768,153.0,0.00054093,30]
[358352783,1744977989963,153.0,0.00054093,30]
[358352784,1744977990190,153.0,0.00054093,30]
[358352785,1744977990478,153.0,0.00054093,30]
[358352786,1744977990675,153.0,0.00054093,30]
[358352787,1744977990914,153.0,0.00054093,30]
[358352788,1744977991133,153.0,0.00054093,30]
[358352789,1744977991433,153.0,0.00054093,30]
[358352790,1744977991657,153.0,0.00054093,30]
[358352791,1744977991886,153.0,0.00054093,30]
[358352792,1744977992103,153.0,0.00054093,30]
[358352793,1744977992309,153.0,0.00054093,30]
[358352794,1744977992523,153.0,0.00054093,30]
[358352795,1744977992716,153.0,0.00054093,30]
[358352796,1744977992919,153.0,0.00054093,30]
[358352797,1744977993147,153.0,0.00054093,30]
[358352798,1744977993388,153.0,0.00054093,30]
[358352799,1744977993599,153.0,0.00054093,30]
[358352800,1744977993821,153.0,0.00054093,30]
[358352801,1744977994160,153.0,0.00054093,30]
[358352802,1744977994373,153.0,0.00054093,30]
[358352803,1744977994578,153.0,0.00054093,30]
[358352804,1744977995009,153.0,0.00054093,30]
[358352805,1744977995241,153.0,0.00054093,30]
[358352806,1744977995513,153.0,0.00054093,30]
[358352807,1744977995747,153.0,0.00054093,30]
[358352808,1744977995960,153.0,0.00054093,30]
[358352809,1744977996177,153.0,0.00054093,30]
[358352810,1744977996381,153.0,0.00054093,30]
[358352811,1744977996590,153.0,0.00054093,30]
[358352812,1744977996809,153.0,0.00054093,30]
[358352813,1744977997199,153.0,0.00054093,30]
[358352814,1744977997419,153.0,0.00054093,30]
[358352815,1744977998200,153.0,0.00054093,30]
[358352816,1744977998404,153.0,0.00054093,30]
[358352817,1744977998618,153.0,0.00054093,30]
[358352818,1744977998835,153.0,0.00054093,30]
[358352819,1744977999038,153.0,0.00054093,30]
[358352820,1744977999243,153.0,0.00054093,30]
[358352821,1744977999466,153.0,0.00054093,30]
[358352822,1744977999654,153.0,0.00054093,30]
[358352823,1744977999858,153.0,0.00054093,30]
[358352824,1744978000228,153.0,0.00054093,30]
[358352825,1744978000289,153.0,0.00054093,30]
[358352826,1744978000604,153.0,0.00054093,30]
[358352827,1744978000809,153.0,0.00054093,30]
[358352828,1744978001039,153.0,0.00054093,30]
[358352829,1744978001257,153.0,0.00054093,30]
[358352830,1744978001561,153.0,0.00054093,30]
[358352831,1744978001767,153.0,0.00054093,30]
[358352832,1744978002021,153.0,0.00054093,30]
[358352833,1744978002238,153.0,0.00054093,30]
[358352834,1744978002468,153.0,0.00054093,30]
[358352835,1744978002680,153.0,0.00054093,30]
[358352836,1744978002878,153.0,0.00054093,30]
[358352837,1744978003081,153.0,0.00054093,30]
[358352838,1744978003285,153.0,0.00054093,30]
[358352839,1744978003502,153.0,0.00054093,30]
[358352840,1744978003733,153.0,0.00054093,30]
[358352841,1744978003937,153.0,0.00054093,30]
[358352842,1744978004271,153.0,0.00054093,30]
[358352843,1744978004585,153.0,0.00054093,30]
[358352844,1744978004784,153.0,0.00054093,30]
[358352845,1744978004953,153.0,0.00054093,30]
[358352846,1744978004985,153.0,0.00054093,30]
[358352847,1744978005187,153.0,0.00054093,30]
[358352848,1744978005278,153.0,0.00054093,30]
[358352849,1744978005400,153.0,0.00054093,30]
[358352850,1744978005490,153.0,0.00054093,30]
[358352851,1744978005614,153.0,0.00054093,30]
[358352852,1744978005727,153.0,0.00054093,30]
[358352853,1744978005942,153.0,0.00054093,30]
[358352854,1744978006162,153.0,0.00054093,30]
[358352855,1744978006380,153.0,0.00054093,30]
[358352856,1744978006445,153.0,0.00054093,30]
[358352857,1744978006651,153.0,0.00054093,30]
[358352858,1744978006701,153.0,0.00054093,30]
[358352859,1744978006850,153.0,0.00054093,30]
[358352860,1744978006912,153.0,0.00054093,30]
[358352861,1744978007056,153.0,0.00054093,30]
[358352862,1744978007127,153.0,0.00054093,30]
[358352863,1744978007253,153.0,0.00054093,30]
[358352864,1744978007492,153.0,0.00054093,30]
[358352865,1744978007565,153.0,0.00054093,30]
[358352866,1744978007700,153.0,0.00054093,30]
[358352867,1744978007761,153.0,0.00054093,30]
[358352868,1744978007927,153.0,0.00054093,30]
[358352869,1744978007961,153.0,0.00054093,30]
[358352870,1744978008154,153.0,0.00054093,30]
[358352871,1744978008187,153.0,0.00054093,30]
[358352872,1744978008376,153.0,0.00054093,30]
[358352873,1744978008452,153.0,0.00054093,30]
[358352874,1744978008623,153.0,0.00054093,30]
[358352875,1744978008845,153.0,0.00054093,30]
[358352876,1744978028136,-606.039713,0.00067864,30]
[358352877,1744978028159,-599.08326304,0.00068205,2]
[358352878,1744978028180,-6893.61013705,0.00068271,2]
[358352879,1744978028203,-182.27,0.00068305,120]
[358352880,1744978028226,-1000.0,0.0006844,120]
[358352881,1744978028248,-641.0,0.00068462,20]
[358352882,1744978028269,-1120.91086025,0.00068463,120]
[358352883,1744978034105,-250.0,0.00068419,120]
[358352884,1744978034126,-735.17358124,0.00068463,120]
[358352885,1744978035401,500.0,0.00060076,120]
[358352886,1744978040081,-186.27755851,0.00068463,120]
[358352887,1744978040104,-1329.0,0.00068463,120]
[358352888,1744978040126,-26.15616096,0.00068463,2]
[358352889,1744978044149,-835.43864312,0.00068463,2]
[358352890,1744978048677,500.0,0.00063981,120]
[358352891,1744978069382,153.0,0.00054093,30]
[358352892,1744978069583,153.0,0.00054093,30]
[358352893,1744978069787,153.0,0.00054093,30]
[358352894,1744978070561,153.0,0.00054093,30]
[358352895,1744978070753,153.0,0.00054093,30]
[358352896,1744978070954,153.0,0.00054093,30]
[358352897,1744978082291,294.75348104,0.00055,120]
[358352898,1744978128313,153.0,0.00054093,30]
[358352899,1744978128546,153.0,0.00054093,30]
[358352900,1744978128924,153.0,0.00054093,30]
[358352901,1744978129154,153.0,0.00054093,30]
[358352902,1744978129466,153.0,0.00054093,30]
[358352903,1744978129677,153.0,0.00054093,30]
[358352904,1744978188073,153.0,0.00054093,30]
[358352905,1744978188324,153.0,0.00054093,30]
[358352906,1744978188546,153.0,0.00054093,30]
[358352907,1744978188778,153.0,0.00054093,30]
[358352908,1744978188992,153.0,0.00054093,30]
[358352909,1744978198717,3000.0,0.0006178,120]
[358352910,1744978200279,3000.0,0.00062054,120]
[358352911,1744978201834,3000.0,0.00062328,120]
[358352912,1744978203423,3000.0,0.00062602,120]
[358352913,1744978205034,3000.0,0.00062876,120]
[358352914,1744978206588,3000.0,0.0006315,120]
[358352915,1744978208171,3000.0,0.00063424,120]
[358352916,1744978210125,3000.0,0.00063698,120]
[358352917,1744978212112,3000.0,0.00064246,120]
[358352918,1744978212172,152.0,0.00063319,120]
[358352919,1744978213681,2640.36916901,0.00064794,120]
[358352924,1744978232406,-499.14653141,0.00048033,2]
[358352925,1744978232416,-0.63538974,0.00063319,2]
[358353089,1744978238689,-1474.21608244,0.00063319,2]
[358353090,1744978238698,-662.14852782,0.00063319,2]
[358353091,1744978238706,-359.63083099,0.00064794,120]
[358353092,1744978238716,-2209.35064534,0.00065342,120]
[358353093,1744978238727,-790.64935466,0.00065342,120]
[358353094,1744978238737,-1678.94906698,0.0006589,120]
[358353095,1744978238748,-263.87137854,0.0006589,120]
[358353096,1744978238760,-1057.17955448,0.0006589,120]
[358353097,1744978238769,-152.0,0.00066319,120]
[358353098,1744978238779,-2137.0,0.00066319,2]
[358353099,1744978238788,-3000.0,0.00066438,120]
[358353101,1744978238797,-1491.76,0.00066652,2]
[358353103,1744978238807,-3000.0,0.00066986,120]
[358353104,1744978238816,-2857.20454344,0.00067534,120]
[358353105,1744978238827,-142.79545656,0.00067534,120]
[358353106,1744978238837,-190.0,0.00068,120]
[358353107,1744978238846,-3000.0,0.00068082,120]
[358353108,1744978238856,-17415.5707,0.00068393,2]
[358353109,1744978238865,-500.0,0.00068493,120]
[358353110,1744978238874,-500.0,0.00068493,120]
[358353111,1744978238883,-2122.05,0.00068493,120]
[358353112,1744978238893,-796.86,0.00068493,120]
[358353114,1744978238902,-500.0,0.00068493,120]
[358353116,1744978238911,-500.0,0.00068493,120]
[358353118,1744978238922,-500.0,0.00068493,120]
[358353119,1744978238932,-1875.69,0.00068493,120]
[358353120,1744978238942,-500.0,0.00068493,120]
[358353121,1744978238951,-1497.85,0.00068493,120]
[358353122,1744978238961,-500.0,0.00068493,120]
[358353123,1744978238971,-549.34,0.00068493,120]
[358353124,1744978238980,-500.0,0.00068493,120]
[358353125,1744978238990,-500.0,0.00068493,120]
[358353126,1744978238999,-2139.88,0.00068514,2]
[358353127,1744978239009,-200.0,0.00068518,2]
[358353128,1744978239018,-1140.52165049,0.0006863,120]
[358353129,1744978239028,-150.0,0.00068632,30]
[358353130,1744978239038,-158.72,0.00068645,120]
[358353131,1744978239047,-500.0,0.000689,15]
[358353132,1744978239056,-1853.37,0.000689,2]
[358353133,1744978239073,-738.24976487,0.000689,34]
[358353134,1744978239084,-500.0,0.00068901,120]
[358353135,1744978239094,-500.0,0.00068901,120]
[358353136,1744978239104,-500.0,0.00068901,120]
[358353137,1744978239114,-500.0,0.00068901,120]
[358353138,1744978239128,-500.0,0.00068901,120]
[358353139,1744978239339,-500.0,0.00068901,120]
[358353140,1744978239350,-500.0,0.00068901,120]
[358353141,1744978239360,-233.83201522,0.00068901,120]
[358353142,1744978239370,-500.0,0.00068901,120]
[358353143,1744978239379,-500.0,0.00068901,120]
[358353144,1744978239388,-500.0,0.00068901,120]
[358353145,1744978239396,-500.0,0.00068901,120]
[358353146,1744978239406,-500.0,0.00068901,120]
[358353147,1744978239416,-500.0,0.00068901,120]
[358353148,1744978239425,-500.0,0.00068901,120]
[358353149,1744978239435,-500.0,0.00068901,120]
[358353150,1744978239445,-500.0,0.00068901,120]
[358353151,1744978239454,-500.0,0.00068901,120]
[358353152,1744978239463,-500.0,0.00068901,120]
[358353153,1744978239473,-500.0,0.00068901,120]
[358353154,1744978239481,-500.0,0.00068901,120]
[358353155,1744978239490,-500.0,0.00068901,120]
[358353156,1744978239499,-500.0,0.00068901,120]
[358353157,1744978239507,-500.0,0.00068901,120]
[358353158,1744978239515,-500.0,0.00068901,120]
[358353159,1744978239524,-500.0,0.00068901,120]
[358353160,1744978239533,-500.0,0.00068901,120]
[358353161,1744978239542,-500.0,0.00068901,120]
[358353162,1744978239551,-500.0,0.00068901,120]
[358353163,1744978239561,-500.0,0.00068901,120]
[358353164,1744978239570,-11746.49129863,0.00068903,2]
[358353165,1744978239580,-1491.76,0.00068916,2]
[358353166,1744978239589,-335.0,0.00069,120]
[358353167,1744978239598,-1034.19429766,0.0006904,15]
[358353168,1744978239607,-500.0,0.00069041,120]
[358353169,1744978239617,-500.0,0.00069041,120]
[358353170,1744978239626,-2122.05,0.00069041,120]
[358353171,1744978239635,-796.86,0.00069041,120]
[358353172,1744978239644,-500.0,0.00069041,120]
[358353173,1744978239654,-500.0,0.00069041,120]
[358353174,1744978239663,-1875.69,0.00069041,120]
[358353175,1744978239673,-1497.85,0.00069041,120]
[358353176,1744978239681,-500.0,0.00069041,120]
[358353177,1744978239691,-549.34,0.00069041,120]
[358353178,1744978239700,-500.0,0.00069041,120]
[358353179,1744978239709,-492.16618116,0.00069041,120]
[358353199,1744978243356,-7.83381884,0.00069041,120]
[358353200,1744978243367,-253.323,0.00069312,120]
[358353201,1744978243377,-1275.405,0.00069319,2]
[358353202,1744978243387,-738.24976481,0.00069417,34]
[358353203,1744978243397,-1242.69,0.00069451,5]
[358353204,1744978243406,-327.04516741,0.00069451,5]
[358353205,1744978243415,-500.0,0.00069589,120]
[358353207,1744978243426,-153.57931672,0.00069589,120]
[358353209,1744978243438,-346.42068328,0.00069589,120]
[358353210,1744978243447,-266.66986525,0.00069589,120]
[358353211,1744978244290,-1855.38013475,0.00069589,120]
[358353212,1744978244300,-796.86,0.00069589,120]
[358353213,1744978244310,-500.0,0.00069589,120]
[358353214,1744978244320,-290.3729207,0.00069589,120]
[358353215,1744978244329,-111.78694455,0.00069589,120]
[358353216,1744978244344,-1763.90305545,0.00069589,120]
[358353217,1744978244354,-1497.85,0.00069589,120]
[358353218,1744978244363,-500.0,0.00069589,120]
[358353219,1744978244372,-549.34,0.00069589,120]
[358353220,1744978244381,-643.919999,0.00069589,120]
[358353221,1744978244391,-500.0,0.00069589,120]
[358353222,1744978244400,-335.0,0.00069726,120]
[358353223,1744978244410,-1392.05897336,0.00069726,30]
[358353224,1744978244419,-36134.2821,0.000698,2]
[358353225,1744978244429,-500.0,0.000698,2]
[358353226,1744978244438,-1000.0,0.000698,30]
[358353227,1744978244448,-264.0592,0.000698,2]
[358353228,1744978244458,-3084.4283,0.000698,2]
[358353229,1744978244467,-1000.0,0.000698,2]
[358353230,1744978244477,-1220.933,0.000698,2]
[358353231,1744978244487,-2373.63180637,0.00069835,15]
[358353232,1744978244497,-155.66498294,0.00069899,28]
[358353233,1744978244507,-35430.1944649,0.000699,120]
[358353234,1744978244520,-530.51616546,0.000699,120]
[358353235,1744978244542,-2.22e-06,0.000699,120]
[358353237,1744978246351,-1379.14685191,0.000699,120]
[358353238,1744978246461,-936.1368,0.000699,120]
[358353239,1744978246474,-372.68424007,0.000699,120]
[358353240,1744978246486,-399.18648001,0.000699,120]
[358353241,1744978248877,153.0,0.00054093,30]
[358353242,1744978249103,153.0,0.00054093,30]
[358353243,1744978249866,153.0,0.00054093,30]
[358353244,1744978250180,153.0,0.00054093,30]
[358353245,1744978287332,150.0,0.00048,30]
[358353246,1744978327755,200.469999,0.00048033,30]
[358353247,1744978357556,167.536342,0.00044004,2]
[358353248,1744978607477,153.0,0.00053405,30]
[358353249,1744978607688,153.0,0.00053405,30]
[358353250,1744978607919,153.0,0.00053405,30]
[358353251,1744978637524,150.78838332,0.0006,2]
[358353252,1744978668197,153.0,0.00053405,30]
[358353253,1744978668436,153.0,0.00053405,30]
[358353254,1744978668643,153.0,0.00053405,30]
[358353255,1744978671356,37609.29908798,0.0005,120]
[358353256,1744978728502,153.0,0.00053405,30]
[358353257,1744978728788,153.0,0.00053405,30]
[358353258,1744978788572,153.0,0.00053405,30]
[358353259,1744978788829,153.0,0.00053405,30]
[358353260,1744978820745,169.999999,0.0002488,7]
[358353261,1744978846661,153.0,0.00053405,30]
[358353262,1744978846950,153.0,0.00053405,30]
[358353263,1744978880224,600.0,0.0006,2]
[358353264,1744978904285,150.0,0.0006,2]
[358353265,1744979056265,300.0,0.0006,2]
[358353266,1744979085486,536.16920133,0.0006,2]
[358353267,1744979108605,7718.20698637,0.0002,2]
[358353268,1744979108635,50000.0,0.0002,2]
[358353269,1744979108669,48921.26269791,0.0002,2]
[358353270,1744979108699,48921.26269791,0.0002,2]
[358353271,1744979108727,50000.0,0.0002,2]
[358353272,1744979108756,50000.0,0.0002,2]
[358353273,1744979108785,50000.0,0.0002,2]
[358353274,1744979108815,49370.286,0.0002,2]
[358353275,1744979108845,4100.000001,0.0002,2]
[358353276,1744979108870,10000.0,0.0002,2]
[358353277,1744979108893,10000.0,0.0002,2]
[358353278,1744979108922,170002.17994198,0.0002,2]
[358353279,1744979108953,100000.0,0.0002,2]
[358353280,1744979108982,100000.0,0.0002,2]
[358353281,1744979109010,100000.0,0.0002,2]
[358353282,1744979109038,100000.0,0.0002,2]
[358353283,1744979109070,100000.0,0.0002,2]
[358353284,1744979109099,100000.0,0.0002,2]
[358353285,1744979109129,100000.0,0.0002,2]
[358353286,1744979109159,100000.0,0.0002,2]
[358353287,1744979109194,100000.0,0.0002,2]
[358353288,1744979109224,100000.0,0.0002,2]
[358353289,1744979109495,-191.214,0.0002,2]
[358353290,1744979110814,604.00939236,0.000154,2]
[358353291,1744979128544,1645.99060764,0.00011,2]